fUSD/lending_fUSD_20251211
["ID","MTS","AMOUNT","RATE_DAILY","PERIOD"]
[398280462,1765489768013,-1231.84153568,0.000468,120]
[398280463,1765489768092,-4540.0,0.0004689,60]
[398280464,1765489768379,-2131.27312868,0.000469,120]
[398280465,1765489768454,-1000.0,0.000469,120]
[398280466,1765489768529,-211.0,0.0004698,30]
[398280467,1765489768601,-211.0,0.0004698,30]
[398280468,1765489768674,-500.0,0.00047,120]
[398280469,1765489768751,-616.02392559,0.00047,30]
[398280470,1765489768827,-2657.17045167,0.00047,120]
[398280471,1765489768905,-150.0,0.00047,120]
[398280472,1765489768980,-1728.9260246,0.00047,120]
[398280473,1765489769056,-2322.0,0.00047,120]
[398280474,1765489769131,-191.0,0.00047,120]
[398280475,1765489769205,-159.0,0.00047,120]
[398280476,1765489769281,-152.15946983,0.00047308,120]
[398280477,1765489769357,-9999.0,0.00047398,120]
[398280478,1765489769430,-191.0,0.000474,120]
[398280479,1765489769503,-159.0,0.000474,120]
[398280480,1765489769576,-595.04704703,0.000474,120]
[398280481,1765489769649,-754.47300294,0.000475,120]
[398280482,1765489769724,-600.0,0.000475,120]
[398280483,1765489769796,-2477.51347998,0.0004768,60]
[398280484,1765489769866,-9999.0,0.00047698,60]
[398280485,1765489769939,-194.13,0.000477,30]
[398280486,1765489770015,-384.98,0.000477,30]
[398280487,1765489770090,-3285.46189257,0.00047778,120]
[398280488,1765489770165,-4540.0,0.0004789,60]
[398280489,1765489770239,-191.0,0.000479,120]
[398280490,1765489770312,-159.0,0.000479,120]
[398280491,1765489770388,-12888.66932875,0.00047999,120]
[398280492,1765489770464,-1000.0,0.00047999,120]
[398280493,1765489770538,-1742.66775065,0.00048,120]
[398280494,1765489770615,-1071.29074673,0.00048,120]
[398280495,1765489770687,-1651.81841109,0.00048,120]
[398280496,1765489770757,-485.10808947,0.00048,120]
[398280497,1765489770836,-615.57285333,0.00048,120]
[398280498,1765489770907,-169.0485859,0.00048,120]
[398280499,1765489770977,-234.87638517,0.00048,120]
[398280500,1765489771052,-459.6894163,0.00048,120]
[398280501,1765489771124,-2500.0,0.00048,120]
[398280502,1765489771195,-150.0,0.00048,120]
[398280503,1765489771271,-300.0,0.00048,120]
[398280504,1765489771346,-587.89400023,0.00048,120]
[398280505,1765489771417,-2045.54177729,0.00048,60]
[398280506,1765489771491,-500.0,0.00048,120]
[398280507,1765489771564,-3048.43433461,0.00048,120]
[398280508,1765489771634,-3677.546076,0.00048,120]
[398280509,1765489771710,-50000.0,0.00048,34]
[398280510,1765489771797,-929.34571312,0.00048,120]
[398280511,1765489771868,-500.0,0.00048,120]
[398280512,1765489771940,-1769.40817513,0.0004825,120]
[398280513,1765489772020,-9999.0,0.00048398,120]
[398280514,1765489772108,-191.0,0.000484,120]
[398280515,1765489772191,-159.0,0.000484,120]
[398280516,1765489772264,-52000.0,0.000485,33]
[398280517,1765489772338,-500.0,0.000485,120]
[398280518,1765489772412,-357.17,0.00048526,120]
[398280519,1765489772485,-1150.0,0.0004865,71]
[398280520,1765489772557,-707.856298,0.000487,120]
[398280521,1765489772632,-274.13184511,0.000488,120]
[398280522,1765489772705,-193998.91345321,0.000488,120]
[398280523,1765489772777,-446.01,0.00048832,120]
[398280524,1765489772849,-10773.74104621,0.00048875,60]
[398280525,1765489772920,-14968.58961482,0.00048875,60]
[398280526,1765489772991,-450.0,0.00048886,120]
[398280527,1765489773066,-4540.0,0.0004889,60]
[398280528,1765489773145,-1420.172169,0.000489,30]
[398280529,1765489773241,-726.28712768,0.000489,120]
[398280530,1765489773322,-1254.14259093,0.000489,120]
[398280531,1765489773407,-191.0,0.000489,120]
[398280532,1765489773484,-159.0,0.000489,120]
[398280533,1765489773568,-450.0,0.00048986,120]
[398280534,1765489773641,-211.0,0.0004899,30]
[398280535,1765489773712,-211.0,0.0004899,30]
[398280536,1765489773784,-212.0,0.0004899,30]
[398280537,1765489773854,-1000.0,0.00048999,120]
[398280538,1765489773925,-1164.53193158,0.00049,120]
[398280539,1765489773999,-2880.0554327,0.00049,120]
[398280540,1765489774074,-789.64289034,0.00049,30]
[398280541,1765489774150,-166.03135987,0.00049,120]
[398280542,1765489774227,-1514.54748923,0.00049,120]
[398280543,1765489774302,-403.43538335,0.00049,120]
[398280544,1765489774378,-4903.17002161,0.00049,120]
[398280545,1765489774454,-1471.71491963,0.00049,120]
[398280546,1765489774528,-600.0,0.00049,120]
[398280547,1765489774605,-2700.0,0.00049,120]
[398280548,1765489774676,-2500.0,0.00049,120]
[398280549,1765489774748,-150.0,0.00049,120]
[398280550,1765489774820,-51000.0,0.00049,35]
[398280551,1765489774893,-500.0,0.00049,120]
[398280552,1765489774964,-1716.0,0.00049,120]
[398280553,1765489775036,-13579.12513553,0.00049,30]
[398280554,1765489775112,-288.6545701,0.00049,120]
[398280555,1765489775338,-2322.0,0.00049,120]
[398280556,1765489775419,-1972.17194535,0.00049315,120]
[398280557,1765489775505,-500.0,0.00049315,120]
[398280558,1765489775588,-201.11149995,0.00049315,120]
[398280559,1765489775672,-9999.0,0.00049398,120]
[398280560,1765489775750,-191.0,0.000494,120]
[398280561,1765489775833,-159.0,0.000494,120]
[398280562,1765489775911,-194.13,0.000494,30]
[398280563,1765489775983,-384.98,0.000494,30]
[398280564,1765489776056,-350180.6162,0.00049444,30]
[398280565,1765489776130,-800.25719872,0.000495,120]
[398280566,1765489776205,-500.0,0.000495,120]
[398280567,1765489776280,-7415.92844331,0.000495,120]
[398280568,1765489776352,-52000.0,0.000495,35]
[398280569,1765489776425,-9999.0,0.00049698,60]
[398280570,1765489776499,-2058.43475312,0.000497,30]
[398280571,1765489776572,-1433.9401378,0.000498,30]
[398280572,1765489776643,-2000.0,0.0004986,68]
[398280573,1765489776720,-4540.0,0.0004989,60]
[398280574,1765489776795,-191.0,0.000499,120]
[398280575,1765489776869,-159.0,0.000499,120]
[398280576,1765489776941,-6372.42900381,0.00049999,120]
[398280577,1765489777019,-500.0,0.00049999,120]
[398280578,1765489777101,-512.14176228,0.00049999,120]
[398280579,1765489777186,-500.0,0.00049999,120]
[398280580,1765489777266,-599.92880365,0.00049999,120]
[398280581,1765489777349,-468.9220503,0.00049999,120]
[398280582,1765489777433,-500.0,0.00049999,120]
[398280583,1765489777539,-392.8448798,0.00049999,120]
[398280584,1765489777651,-50000.0,0.0005,50]
[398280585,1765489777730,-150.0,0.0005,40]
[398280586,1765489777809,-210.35,0.0005,120]
[398280587,1765489777887,-500.0,0.0005,120]
[398280588,1765489777964,-172.73242606,0.0005,120]
[398280589,1765489778042,-2050.31377775,0.0005,120]
[398280590,1765489778120,-239.35644999,0.0005,120]
[398280591,1765489778197,-680.46892685,0.0005,120]
[398280592,1765489778276,-771.49435698,0.0005,120]
[398280593,1765489778354,-1086.97035085,0.0005,120]
[398280594,1765489778432,-225.52371715,0.0005,120]
[398280595,1765489778510,-165.4330999,0.0005,120]
[398280596,1765489778589,-500.0,0.0005,30]
[398280597,1765489778665,-623.10064952,0.0005,120]
[398280598,1765489778747,-200.0,0.0005,120]
[398280599,1765489778822,-1000.0,0.0005,120]
[398280600,1765489778898,-2078.26372236,0.0005,120]
[398280601,1765489778977,-365.2022485,0.0005,120]
[398280602,1765489779054,-150.0,0.0005,120]
[398280603,1765489779132,-223.0,0.0005,120]
[398280604,1765489779205,-476.52980256,0.0005,120]
[398280605,1765489779280,-235.05548066,0.0005,120]
[398280606,1765489779362,-500.0,0.0005,120]
[398280607,1765489779445,-300.0,0.0005,120]
[398280608,1765489779526,-365.67013378,0.0005,30]
[398280609,1765489779615,-150.0,0.0005,60]
[398280610,1765489779693,-1000.0,0.0005,120]
[398280611,1765489779767,-6000.0,0.0005,30]
[398280612,1765489779844,-30000.0,0.0005,120]
[398280613,1765489779921,-206.10070473,0.0005,93]
[398280614,1765489779995,-1008081.79781137,0.0005,120]
[398280615,1765489780069,-11643.50554453,0.0005,30]
[398280616,1765489780145,-448.0,0.0005,120]
[398280617,1765489780222,-79384.40423885,0.0005,30]
[398280618,1765489780302,-262.2626046,0.0005,120]
[398280619,1765489780382,-50000.0,0.0005,30]
[398280620,1765489780459,-408.0,0.0005,30]
[398280621,1765489780538,-1224.0,0.0005,120]
[398280622,1765489780615,-1000.0,0.0005,120]
[398280623,1765489780692,-182.0,0.0005,120]
[398280624,1765489780768,-820.98712441,0.0005,120]
[398280625,1765489780843,-3345.63,0.0005,120]
[398280626,1765489780917,-3252.0,0.0005,120]
[398280627,1765489780991,-41009.57854934,0.0005,120]
[398280628,1765489781068,-175.63843598,0.0005,120]
[398280629,1765489781145,-629.12804092,0.0005,30]
[398280630,1765489781226,-255.61,0.0005,120]
[398280631,1765489781307,-5166.06,0.0005,120]
[398280632,1765489781384,-767.11,0.0005,120]
[398280633,1765489781460,-1700.0,0.000501,120]
[398280634,1765489781537,-9999.0,0.00050398,120]
[398280635,1765489781612,-191.0,0.000504,120]
[398280636,1765489781687,-159.0,0.000504,120]
[398280637,1765489781763,-500.0,0.000505,120]
[398280638,1765489781841,-716.23891755,0.000508,120]
[398280639,1765489781918,-191.0,0.000509,120]
[398280640,1765489781996,-159.0,0.000509,120]
[398280641,1765489782069,-194.13,0.000509,30]
[398280642,1765489782144,-10000.0,0.00051,120]
[398280643,1765489782214,-150.0,0.00051,40]
[398280644,1765489782287,-500.0,0.00051,120]
[398280645,1765489782359,-1000.0,0.00051,120]
[398280646,1765489782448,-150.0,0.00051,120]
[398280647,1765489782527,-1000.0,0.00051,120]
[398280648,1765489782619,-3027.87489143,0.00051,120]
[398280649,1765489782983,-153238.7545731,0.00051,60]
[398280650,1765489783080,-2322.0,0.00051,120]
[398280651,1765489783156,-1858.69142624,0.00051,120]
[398280652,1765489783231,-384.98,0.00051,30]
[398280653,1765489783307,-15243.98872714,0.00051234,31]
[398280654,1765489783383,-2000.0,0.0005136,76]
[398280655,1765489783469,-994.0,0.00051379,120]
[398280656,1765489783542,-191.0,0.000514,120]
[398280657,1765489783612,-159.0,0.000514,120]
[398280658,1765489783682,-500.0,0.000515,120]
[398280659,1765489783751,-294.94444979,0.000515,120]
[398280660,1765489783824,-1000.0,0.00051586,120]
[398280661,1765489783892,-1000.0,0.00051586,120]
[398280662,1765489783964,-1000.0,0.00051586,120]
[398280663,1765489784039,-234.0,0.000516,64]
[398280664,1765489784117,-1000.0,0.00051638,120]
[398280665,1765489784191,-1000.0,0.00051638,120]
[398280666,1765489784270,-1000.0,0.00051638,120]
[398280667,1765489784347,-1000.0,0.00051649,120]
[398280668,1765489784424,-1000.0,0.0005169,120]
[398280669,1765489784498,-1000.0,0.0005169,120]
[398280670,1765489784572,-1000.0,0.0005169,120]
[398280671,1765489784653,-9999.0,0.00051698,60]
[398280672,1765489784725,-2727.23698872,0.000517,120]
[398280673,1765489784800,-8313.88660935,0.000517,120]
[398280674,1765489784874,-1000.0,0.00051742,120]
[398280675,1765489784961,-1000.0,0.00051742,120]
[398280676,1765489785034,-1000.0,0.00051742,120]
[398280677,1765489785106,-89300.56999701,0.00051777,50]
[398280678,1765489785184,-22685.90052632,0.00051777,60]
[398280679,1765489785266,-1000.0,0.00051795,120]
[398280680,1765489785343,-1000.0,0.00051795,120]
[398280681,1765489785416,-1000.0,0.00051795,120]
[398280682,1765489785491,-1000.0,0.00051847,120]
[398280683,1765489785563,-1000.0,0.00051847,120]
[398280684,1765489785631,-1000.0,0.00051847,120]
[398280685,1765489785701,-9999.0,0.00051898,120]
[398280686,1765489785769,-1000.0,0.00051899,120]
[398280687,1765489785839,-1000.0,0.00051899,120]
[398280688,1765489785910,-1000.0,0.00051899,120]
[398280689,1765489785979,-206719.14332918,0.000519,120]
[398280690,1765489786047,-898.9,0.000519,120]
[398280691,1765489786118,-191.0,0.000519,120]
[398280692,1765489786188,-159.0,0.000519,120]
[398280693,1765489786259,-622.36,0.00051919,120]
[398280694,1765489786335,-1000.0,0.00051951,120]
[398280695,1765489786409,-1000.0,0.00051951,120]
[398280696,1765489786487,-1000.0,0.00051951,120]
[398280697,1765489786564,-1575.4298908,0.0005198,110]
[398280698,1765489786639,-1000.0,0.00051999,120]
[398280699,1765489786710,-625.0,0.00052,120]
[398280700,1765489786781,-200.0,0.00052,40]
[398280701,1765489786850,-500.0,0.00052,120]
[398280702,1765489786921,-159.66863193,0.00052,120]
[398280703,1765489786990,-1141.78446905,0.00052,120]
[398280704,1765489787059,-150.0,0.00052,120]
[398280705,1765489787129,-300.0,0.00052,120]
[398280706,1765489787197,-1000.0,0.00052,120]
[398280707,1765489787271,-1406.0,0.00052,120]
[398280708,1765489787348,-2500.0,0.00052,120]
[398280709,1765489787426,-102290.70030801,0.00052,120]
[398280710,1765489787498,-100000.0,0.00052,30]
[398280711,1765489787569,-218.0,0.00052,120]
[398280712,1765489787639,-19895.48,0.00052,120]
[398280713,1765489787709,-1000.0,0.00052003,120]
[398280714,1765489787781,-1000.0,0.00052003,120]
[398280715,1765489787855,-1000.0,0.00052003,120]
[398280716,1765489787926,-1000.0,0.00052055,120]
[398280717,1765489787995,-1000.0,0.00052055,120]
[398280718,1765489788064,-1000.0,0.00052055,120]
[398280719,1765489788135,-752.64834999,0.00052055,120]
[398280720,1765489788204,-1566.82526131,0.00052366,120]
[398280721,1765489788278,-9999.0,0.00052398,120]
[398280722,1765489788350,-26615.6113007,0.000524,60]
[398280723,1765489788434,-191.0,0.000524,120]
[398280724,1765489788512,-159.0,0.000524,120]
[398280725,1765489788587,-2433.0,0.000525,120]
[398280726,1765489788660,-293.08138332,0.000525,120]
[398280727,1765489788730,-500.0,0.000525,120]
[398280728,1765489788800,-1300.0,0.000525,120]
[398280729,1765489788870,-2000.0,0.0005263,72]
[398280730,1765489788940,-1556058.43069267,0.0005269,120]
[398280731,1765489795956,-1364.70500568,0.00041701,30]
[398280732,1765489796033,-3663.85106558,0.00041801,34]
[398280733,1765489796133,-462.0,0.00044658,120]
[398280734,1765489796205,-462.0,0.00044795,120]
[398280735,1765489796285,-462.0,0.00044932,120]
[398280736,1765489796358,-462.0,0.00045069,120]
[398280737,1765489796436,-462.0,0.00045206,120]
[398280738,1765489796511,-374.51337348,0.0004525,120]
[398280739,1765489796583,-462.0,0.00045343,120]
[398280740,1765489796657,-462.0,0.0004548,120]
[398280741,1765489796728,-462.0,0.00045617,120]
[398280742,1765489796799,-462.0,0.00045754,120]
[398280743,1765489796869,-462.0,0.00045891,120]
[398280744,1765489796939,-462.0,0.00046028,120]
[398280745,1765489797012,-462.0,0.00046165,120]
[398280746,1765489797084,-462.0,0.00046302,120]
[398280747,1765489797155,-462.0,0.00046439,120]
[398280748,1765489797225,-462.0,0.00046576,120]
[398280749,1765489797301,-462.0,0.00046713,120]
[398280750,1765489797379,-462.0,0.0004685,120]
[398280751,1765489797454,-462.0,0.00046987,120]
[398280752,1765489797526,-462.0,0.00047124,120]
[398280753,1765489797599,-462.0,0.00047261,120]
[398280754,1765489797670,-462.0,0.00047398,120]
[398280755,1765489797744,-462.0,0.00047535,120]
[398280756,1765489797818,-462.0,0.00047672,120]
[398280757,1765489797889,-469.40340732,0.00047809,120]
[398280758,1765489797973,-9999.0,0.00052698,60]
[398280759,1765489798040,-471.0681891,0.000528,120]
[398280760,1765489798112,-9999.0,0.00052898,120]
[398280761,1765489798183,-191.0,0.000529,120]
[398280762,1765489798254,-159.0,0.000529,120]
[398280763,1765489798324,-450.0,0.00052986,120]
[398280764,1765489798396,-500.0,0.00053,120]
[398280765,1765489798464,-170.06073763,0.00053,120]
[398280766,1765489798535,-1500.0,0.00053,120]
[398280767,1765489798603,-150.0,0.00053,120]
[398280768,1765489798668,-1000.0,0.00053,120]
[398280769,1765489798736,-1535.0,0.00053,120]
[398280770,1765489798807,-10000.0,0.00053,120]
[398280771,1765489798888,-200000.0,0.00053,120]
[398280772,1765489798966,-21974.0848691,0.00053,100]
[398280773,1765489799040,-2322.0,0.00053,120]
[398280774,1765489799113,-1580.0,0.00053,120]
[398280775,1765489799188,-190.0,0.00053,120]
[398280776,1765489799264,-20000.0,0.00053,120]
[398280777,1765489799333,-30000.0,0.000532,30]
[398280778,1765489799407,-283326.68366665,0.000532,120]
[398280779,1765489799476,-224.355,0.00053208,98]
[398280780,1765489799546,-9999.0,0.00053398,120]
[398280781,1765489799613,-170.45961462,0.000534,120]
[398280782,1765489799681,-191.0,0.000534,120]
[398280783,1765489799764,-159.0,0.000534,120]
[398280784,1765489799837,-147857.87910517,0.00053493,120]
[398280785,1765489799903,-500.0,0.000535,120]
[398280786,1765489799969,-2157.71258972,0.000535,120]
[398280787,1765489800349,-55504.9209376,0.000535,120]
[398280788,1765489800437,-446.01,0.00053667,120]
[398280789,1765489800510,-2000.0,0.0005369,71]
[398280790,1765489800581,-8031.1598943,0.000538,120]
[398280791,1765489800651,-1000.0,0.000538,120]
[398280792,1765489800720,-1000.0,0.000538,120]
[398280793,1765489800790,-521.0,0.000538,120]
[398280794,1765489800858,-7540.0,0.000538,30]
[398280795,1765489800928,-9999.0,0.00053898,120]
[398280796,1765489801000,-2072.17265677,0.000539,30]
[398280797,1765489801070,-191.0,0.000539,120]
[398280798,1765489801139,-159.0,0.000539,120]
[398280799,1765489801208,-2345793.99957005,0.0005392,120]
[398280800,1765489801278,-2254599.16374578,0.0005392,120]
[398280801,1765489801350,-1423.1619273,0.00053965,120]
[398280802,1765489801420,-3169.075,0.0005398,120]
[398280803,1765489801487,-500.0,0.00054,120]
[398280804,1765489801555,-1660.09542999,0.00054,120]
[398280805,1765489801627,-722.50193055,0.00054,30]
[398280806,1765489801696,-569.04002741,0.00054,30]
[398280807,1765489801764,-824.96765415,0.00054,120]
[398280808,1765489801834,-300.0,0.00054,120]
[398280809,1765489801906,-300.0,0.00054,120]
[398280810,1765489801979,-6685.6897842,0.00054,120]
[398280811,1765489802055,-1000.0,0.00054,120]
[398280812,1765489802131,-1543.92675443,0.00054,120]
[398280813,1765489802218,-8122.62865525,0.00054,120]
[398280814,1765489802311,-10000.0,0.00054,120]
[398280815,1765489802400,-215.43491248,0.00054,120]
[398280816,1765489802473,-648.79716046,0.00054,120]
[398280817,1765489802546,-1749.76360346,0.00054,120]
[398280818,1765489802616,-30156.48676142,0.00054,30]
[398280819,1765489802687,-2293.23879173,0.00054,120]
[398280820,1765489802757,-151.0,0.00054,120]
[398280821,1765489802829,-6738.3628924,0.00054,120]
[398280822,1765489802903,-214.59979885,0.00054,120]
[398280823,1765489802976,-458879.02548737,0.00054,60]
[398280824,1765489819669,-458.16724988,0.00053099,120]
[398280825,1765489819741,-403.97674066,0.00053099,120]
[398280826,1765489819812,-418.48547693,0.00053099,120]
[398280827,1765489819888,-326400.23622048,0.0005391,60]
[398280828,1765489819960,-5672319.13431205,0.00054,60]
[398280829,1765489824969,-5284743.52625652,0.00054,60]
[398280830,1765489825043,-2323.3642828,0.00054,120]
[398280831,1765489825118,-1363.30433866,0.000542,30]
[398280832,1765489825192,-191.0,0.000543,120]
[398280833,1765489825266,-159.0,0.000543,120]
[398280834,1765489825357,-1000.0,0.00054443,120]
[398280835,1765489825436,-1659.14057633,0.00054446,120]
[398280836,1765489825519,-2756.20428153,0.00054448,120]
[398280837,1765489825593,-491.27632223,0.0005445,120]
[398280838,1765489825667,-589.01329399,0.00054473,120]
[398280839,1765489825742,-3533.10105623,0.00054473,120]
[398280840,1765489825818,-15698.27405591,0.00054495,120]
[398280841,1765489825896,-12148.72874564,0.00054495,120]
[398280842,1765489825969,-500.0,0.000545,120]
[398280843,1765489826043,-672844.06679016,0.000545,60]
[398280844,1765489828356,-5000.0,0.00041601,120]
[398280845,1765489828448,-251.72584725,0.00041801,31]
[398280846,1765489828527,-1831.92553279,0.00041801,34]
[398280847,1765489828632,-470617.70656346,0.000545,60]
[398280848,1765489828707,-5522298.6420565,0.000545,60]
[398280849,1765489831547,-1246506.21220821,0.000545,60]
[398280850,1765489831621,-2000.0,0.0005469,71]
[398280851,1765489831694,-584.0,0.00054795,120]
[398280852,1765489831765,-160.0,0.00054795,30]
[398280853,1765489831837,-1200.0,0.00054795,30]
[398280854,1765489831911,-191.0,0.000548,120]
[398280855,1765489831985,-159.0,0.000548,120]
[398280856,1765489832071,-5000.0,0.00054853,120]
[398280860,1765489832154,-9999.0,0.00054898,120]
[398280862,1765489832231,-221.45144779,0.000549,120]
[398280866,1765489832313,-120000.0,0.000549,30]
[398280867,1765489832572,-502.3315169,0.0005495,120]
[398280874,1765489832647,-2000.0,0.00055,120]
[398280883,1765489832722,-214.82114493,0.00055,120]
[398280886,1765489832796,-500.0,0.00055,30]
[398280887,1765489832871,-160.38220456,0.00055,120]
[398280888,1765489832947,-150.0,0.00055,60]
[398280889,1765489833021,-190.0,0.00055,60]
[398280890,1765489833109,-150.0,0.00055,120]
[398280891,1765489833202,-536.59,0.00055,90]
[398280892,1765489833277,-10000.0,0.00055,120]
[398280893,1765489833355,-500.0,0.00055,120]
[398280894,1765489833434,-555.89391059,0.00055,120]
[398280895,1765489833513,-1125.13054895,0.00055,120]
[398280896,1765489833587,-366.06694225,0.00055,120]
[398280897,1765489833661,-1063.51318932,0.00055,120]
[398280898,1765489833735,-344.0,0.00055,120]
[398280899,1765489833809,-953.22209696,0.00055,120]
[398280900,1765489833882,-168.0,0.00055,120]
[398280901,1765489833957,-191.0,0.000553,120]
[398280902,1765489834031,-159.0,0.000553,120]
[398280903,1765489834108,-4594149.38478954,0.000555,120]
[398280904,1765489834230,-300.0,0.00016799,2]
[398280905,1765489834240,-1200.0,0.00016799,2]
[398280906,1765489834254,-114.4797699,0.00016799,2]
[398280907,1765489834287,-177.5202301,0.00016799,2]
[398280908,1765489834296,-918.4118,0.000168,2]
[398280909,1765489834307,-220.9745459,0.000168,2]
[398280910,1765489834317,-33675.702,0.000168,2]
[398280911,1765489834328,-1200.0,0.00016898,2]
[398280912,1765489834338,-173.70688218,0.00016922,2]
[398280913,1765489834347,-371.0,0.00018352,2]
[398280914,1765489834357,-1680.0,0.00018443,2]
[398280915,1765489834367,-195.0,0.0001848,2]
[398280916,1765489834376,-250.0,0.0001848,2]
[398280917,1765489834386,-150.07818798,0.00020933,2]
[398280918,1765489834396,-168.0,0.00025425,2]
[398280919,1765489834406,-168.0,0.00025506,2]
[398280920,1765489834416,-168.0,0.00025569,2]
[398280921,1765489834426,-168.0,0.00025908,2]
[398280922,1765489834435,-168.0,0.00026012,2]
[398280923,1765489834446,-168.0,0.00026078,2]
[398280924,1765489834456,-168.0,0.00026358,2]
[398280925,1765489834466,-168.0,0.00026536,2]
[398280926,1765489834476,-168.0,0.00026818,2]
[398280927,1765489834485,-168.0,0.00026992,2]
[398280928,1765489834494,-168.0,0.00027209,2]
[398280929,1765489834504,-168.0,0.00027486,2]
[398280930,1765489834515,-168.0,0.00027504,2]
[398280931,1765489834524,-168.0,0.00027514,2]
[398280932,1765489834535,-500.0,0.00027577,2]
[398280933,1765489834545,-168.0,0.00027578,2]
[398280934,1765489834556,-168.0,0.00027623,2]
[398280935,1765489834566,-161.3,0.0002768,2]
[398280936,1765489834576,-173.70688217,0.00029312,2]
[398280937,1765489834585,-1622.0,0.00031777,2]
[398280938,1765489834595,-1622.0,0.00031777,2]
[398280939,1765489834605,-1622.0,0.00031777,2]
[398280940,1765489834614,-521.56257475,0.00031777,2]
[398280941,1765489834627,-1100.43742525,0.00031777,2]
[398280942,1765489834636,-1622.0,0.00031777,2]
[398280943,1765489834646,-1622.0,0.00031777,2]
[398280944,1765489834655,-1622.0,0.00031777,2]
[398280945,1765489834665,-1000.0,0.00032411,2]
[398280946,1765489834674,-5468.8,0.00033752,2]
[398280947,1765489834684,-999.0,0.0003444,3]
[398280948,1765489834694,-500.0,0.00034762,14]
[398280949,1765489834703,-200.0,0.00035099,2]
[398280950,1765489834713,-201.69287715,0.00035099,2]
[398280951,1765489834722,-300.0,0.00035099,2]
[398280952,1765489834732,-152.0,0.0003514,3]
[398280953,1765489834742,-250.0,0.00035757,2]
[398280954,1765489834751,-311.1,0.00036468,2]
[398280955,1765489834761,-203.67,0.00037534,2]
[398280956,1765489834771,-150.0,0.00037603,7]
[398280957,1765489834780,-150.0,0.00037603,7]
[398280958,1765489834792,-150.0,0.00037603,7]
[398280959,1765489834801,-150.0,0.00037603,7]
[398280960,1765489834811,-150.0,0.00037603,7]
[398280961,1765489834821,-150.00000001,0.00037603,7]
[398280962,1765489834831,-150.0,0.00037603,7]
[398280963,1765489834840,-150.0,0.00037603,7]
[398280964,1765489834850,-150.0,0.00037603,7]
[398280965,1765489834860,-144.84191814,0.00037603,7]
[398280966,1765489834930,-5.15808186,0.00037603,7]
[398280967,1765489834940,-322.6107,0.00037837,2]
[398280968,1765489834949,-150.0,0.00037901,7]
[398280969,1765489834959,-150.0,0.00037983,7]
[398280970,1765489834968,-930.9233,0.000381,2]
[398280971,1765489834978,-150.0,0.00038125,7]
[398280972,1765489834988,-150.0,0.000382,7]
[398280973,1765489834997,-150.0,0.000382,7]
[398280974,1765489835007,-1000.0,0.00038273,2]
[398280975,1765489835016,-150.0,0.00038299,7]
[398280976,1765489835026,-150.0,0.00038362,7]
[398280977,1765489835036,-500.0,0.00038373,5]
[398280978,1765489835046,-500.0,0.00038373,5]
[398280979,1765489835056,-500.43123012,0.00038373,5]
[398280980,1765489835066,-500.24589791,0.00038373,5]
[398280981,1765489835076,-344.14044023,0.00038373,5]
[398280982,1765489835086,-500.0,0.00038373,5]
[398280983,1765489835096,-200.0,0.00038373,5]
[398280984,1765489835106,-500.0,0.00038373,5]